[Event "1st FIDE Olympiad DIS 2023"]
[Site "Belgrade"]
[Date "2023.01.30"]
[Round "1.6"]
[White "Streltsov, Alexey"]
[Black "Otero Munelo, Harlen Jose"]
[Result "1-0"]
[ECO "B01"]
[WhiteElo "2317"]
[BlackElo "2099"]
[Annotator "TA"]
[PlyCount "141"]
[EventDate "2023.01.30"]
[EventType "team-tourn"]
[EventCountry "SRB"]
[SourceTitle "playchess.com"]
[Source "ChessBase"]
[SourceQuality "1"]
[WhiteTeam "Israel"]
[BlackTeam "Venezuela"]
[WhiteTeamCountry "ISR"]
[BlackTeamCountry "VEN"]
[TimeControl "40/5400+30:1800+30"]

{[%evp 14,141,73,56,69,54,56,51,81,86,72,84,71,73,117,121,121,116,139,132,143,136,157,166,170,164,164,164,178,172,165,165,158,179,198,193,208,212,212,194,210,164,202,204,241,242,273,253,308,269,267,256,318,310,317,320,357,319,320,332,333,335,412,401,414,427,428,404,471,478,586,579,586,542,442,0,538,533,577,562,571,443,420,379,284,0,246,0,554,527,1316,1097,1609,1516,1419,1269,5791,6287,9824,6009,5966,6861,29966,29965,29970,559,29979,29980,29980,29978,29978,29979,29978,29980,29980,29977,29977,29978,29977,29979,29978,29979,29989,29990,29994,29995,29995,29996,29998,29999]} 1. e4 {[%emt 0:00:09]} d5 {[%emt 0:00:19]} 2. exd5 {[%emt 0:00:08]} Nf6 {[%emt 0:00:12]} 3. d4 {[%emt 0:00:25]} Bg4 {[%emt 0:02:38]} 4. Bb5+ {[%emt 0:01:37]} Nbd7 {[%emt 0:00:21]} 5. f3 {[%emt 0:12:24]} Bf5 {[%emt 0:00:28]} 6. c4 {[%emt 0:00:11]} a6 {[%emt 0:02:09]} 7. Bxd7+ {[%emt 0:04:36] is the legacy move (7.Ba4).} Qxd7 {[%emt 0:01:06]} 8. Ne2 {[%emt 0:06:35]} c6 {[%emt 0:28:24] B01: Scandinavian Defence.} 9. dxc6 {[%emt 0:12:01]} Qxc6 {[%emt 0:00:52]} 10. b3 {[%emt 0:04:45]} e6 {[%emt 0:03:54] [#] White is slightly better.} 11. Ba3 $146 {[%emt 0:12:30]} ({Predecessor:} 11. O-O Be7 12. Bf4 O-O 13. Nbc3 Rfd8 14. Qd2 h6 15. Rad1 Rac8 16. Kh1 Nh5 17. Be3 {1-0 Rousev,R-Riff,J Wch U10 Warsaw 1991 (7)}) 11... Bxa3 {[%emt 0:06:12]} 12. Nxa3 {[%emt 0:00:10][%cal Bb1a3,Ba3c2,Bc2e3][%mdl 32]} O-O {[%emt 0:00:06][%cal Oe6e5]} 13. Nc2 {[%emt 0:02:03]} Rfd8 {[%emt 0:09:50]} 14. Ne3 {[%emt 0:01:00]} Bg6 {[%emt 0:00:26]} 15. Qd2 {[%emt 0:05:03]} Qc7 {[%emt 0:11:00]} 16. Rc1 {[%emt 0:03:00]} b6 {[%emt 0:06:30]} 17. O-O {[%emt 0:03:49]} Rac8 {[%emt 0:00:28]} 18. Rfd1 {[%emt 0:05:27]} h5 {[%emt 0:05:37]} 19. Qe1 {[%emt 0:03:01]} e5 {[%emt 0:06:56]} 20. Qg3 {[%emt 0:06:17]} exd4 {[%emt 0:04:00] Threatens to win with ...Qxg3.} 21. Qxc7 {[%emt 0:03:02]} (21. Nxd4 $6 Qc5 22. Qf4 Qa3 $16) 21... Rxc7 {[%emt 0:00:06]} 22. Nxd4 {[%emt 0:00:22]} Re8 {[%emt 0:03:43]} 23. Kf2 {[%emt 0:01:55]} Kf8 {[%emt 0:00:10]} 24. h4 {[%emt 0:01:23]} Nd7 {[%emt 0:00:36]} 25. Nd5 {[%emt 0:00:49]} Rb7 {[%emt 0:00:22]} 26. Nf4 {[%emt 0:01:47] Excellent horsemanship.} Ne5 {[%emt 0:00:33]} 27. Nxg6+ {[%emt 0:00:37]} fxg6 {[%emt 0:00:41]} 28. Rd2 {[%emt 0:03:02]} Kf7 {[%emt 0:00:38]} 29. Ne2 {[%emt 0:01:21]} Nd7 {[%emt 0:02:25]} 30. Nf4 {[%emt 0:00:48]} Nf6 {[%emt 0:00:31]} 31. Re1 {[%emt 0:00:37]} Rxe1 {[%emt 0:00:32]} 32. Kxe1 $18 {[%emt 0:00:05][%mdl 4096] Endgame KRN-KRN} Re7+ {[%emt 0:03:26]} 33. Kf2 {[%emt 0:00:22]} Ne8 {[%emt 0:00:21]} 34. Rd8 {[%emt 0:01:23]} Rb7 {[%emt 0:00:24]} 35. Ra8 {[%emt 0:01:10]} Nc7 {[%emt 0:00:24]} 36. Rc8 {[%emt 0:00:04]} a5 {[%emt 0:00:27]} 37. Ke3 {[%emt 0:00:59]} Ne8 {[%emt 0:00:54]} 38. Rc6 {[%emt 0:00:31] Dodges Nd6} Nf6 {[%emt 0:00:52]} 39. Kd4 {[%emt 0:01:01]} Rd7+ {[%emt 0:00:40]} 40. Nd5 {[%emt 0:00:29]} Nxd5 {[%emt 0:00:39]} 41. cxd5 {[%emt 0:30:06] KR-KR} Re7 {[%emt 0:30:27]} 42. Rxb6 {[%emt 0:02:55]} Re2 {[%emt 0:00:10]} 43. Rb7+ {[%emt 0:01:17]} Kf6 {[%emt 0:00:51]} 44. Rb6+ {[%emt 0:00:00]} Kf7 $1 {[%emt 0:00:00]} 45. g3 {[%emt 0:00:00]} Rxa2 {[%emt 0:00:00]} 46. Ke5 {[%emt 0:00:00]} Re2+ {[%emt 0:00:00]} 47. Kf4 {[%emt 0:00:00]} Rd2 {[%emt 0:00:00]} 48. Rb5 {[%emt 0:00:00]} Kf6 {[%emt 0:00:00]} 49. Rb6+ {[%emt 0:00:00]} Kf7 {[%emt 0:00:00]} 50. Ke5 $2 {[%emt 0:00:00]} (50. Rb7+ Kf6 51. Rb6+ Kf7) 50... Re2+ {[%emt 0:00:00] [#]} 51. Kd6 $1 {[%emt 0:00:00]} Re3 {[%emt 0:02:28]} 52. Kc7 {[%emt 0:00:08] d6 would be deadly.} ({Weaker is} 52. Rb7+ Ke8 53. b4 (53. Rxg7 Rxb3 54. g4 a4 $18) 53... axb4 $18) 52... Rc3+ {[%emt 0:00:44]} 53. Kd8 {[%emt 0:03:15]} Rxf3 {[%emt 0:00:32]} 54. Rb7+ {[%emt 0:00:32]} Kf8 {[%emt 0:00:23]} 55. d6 {[%emt 0:00:51] Threatening mate with d7.} Rxg3 {[%emt 0:00:29]} 56. Rb5 {[%emt 0:03:46] Intending d7 and mate.} Kf7 {[%emt 0:01:20]} 57. d7 {[%emt 0:00:00]} Rd3 {[%emt 0:00:49]} 58. Rxa5 {[%emt 0:00:00]} Rxb3 {[%emt 0:00:27]} 59. Rd5 {[%emt 0:00:00]} (59. Rc5 $142 Rd3 60. Rc6 Kf8 61. Kc8 Ke7 62. Rc7 (62. Rxg6 Rc3+ 63. Kb7 Rc4 $11) 62... Rxd7 63. Rxd7+ Ke6 64. Rxg7) 59... Ra3 {[%emt 0:00:55]} 60. Kc7 {[%emt 0:00:00] White mates.} Ra7+ {[%emt 0:00:13]} 61. Kc6 {[%emt 0:00:00]} Ra8 {[%emt 0:00:43]} 62. d8=Q {[%emt 0:00:00]} Rxd8 {[%emt 0:00:05]} 63. Rxd8 {[%emt 0:00:14]} g5 {[%emt 0:00:12]} 64. hxg5 {[%emt 0:00:13] KR-KPP} Kg6 {[%emt 0:00:50]} 65. Rd7 {[%emt 0:01:01]} h4 {[%emt 0:00:52]} 66. Kd5 {[%emt 0:00:02]} Kxg5 {[%emt 0:00:37]} 67. Ke4 {[%emt 0:01:00]} ({Not} 67. Rxg7+ Kf4 $11) 67... Kg4 {[%emt 0:00:28]} 68. Rxg7+ {[%emt 0:00:07]} Kh3 {[%emt 0:00:04]} 69. Kf3 {[%emt 0:00:11]} Kh2 {[%emt 0:00:04] [#]} 70. Rh7 $1 {[%emt 0:00:14]} h3 {[%emt 0:00:02]} 71. Kf2 {[%emt 0:00:05] Weighted Error Value: White=0.36/Black=0.38} 1-0

[Event "1st FIDE Olympiad DIS 2023"]
[Site "Belgrade"]
[Date "2023.01.30"]
[Round "1.6"]
[White "Arstanbekov, Dzhanysh"]
[Black "Babula, Milan"]
[Result "0-1"]
[ECO "E90"]
[WhiteElo "1621"]
[BlackElo "2107"]
[Annotator "TA"]
[PlyCount "34"]
[EventDate "2023.01.30"]
[EventType "team-tourn"]
[EventCountry "SRB"]
[SourceTitle "playchess.com"]
[Source "ChessBase"]
[SourceQuality "1"]
[WhiteTeam "Kyrgyzstan"]
[BlackTeam "Czech Republic"]
[WhiteTeamCountry "KGZ"]
[BlackTeamCountry "CZE"]
[TimeControl "40/5400+30:1800+30"]

{[%evp 12,34,51,4,55,56,69,52,56,60,67,68,85,64,84,87,73,47,42,36,38,36,33,-109,22]} 1. e4 {[%emt 0:00:20]} Nc6 {[%emt 0:00:08]} 2. Nf3 {[%emt 0:00:06]} g6 {[%emt 0:00:14]} 3. d4 {[%emt 0:00:49]} Bg7 {[%emt 0:00:02]} 4. c4 {[%emt 0:05:29]} d6 {[%emt 0:00:18]} 5. h3 {[%emt 0:00:35]} Nf6 {[%emt 0:01:24]} 6. Nc3 {[%emt 0:00:05]} O-O {[%emt 0:00:39]} 7. Be3 {[%emt 0:00:57]} (7. d5 $14 {is superior.} Nb8 8. Be2) 7... b6 {[%emt 0:04:35] E90: King's Indian: Classical: Early deviations and 6 h3.} (7... e5 $11) 8. Be2 {[%emt 0:01:24]} Bb7 {[%emt 0:01:37]} 9. d5 {[%emt 0:02:36]} Nb8 {[%emt 0:00:51][%cal Bc6b8,Bb8d7,Bd7c5,Bc5e6][%mdl 32] White is slightly better.} 10. O-O {[%emt 0:00:28]} c6 {[%emt 0:02:14] [#]} 11. Qd2 $146 {[%emt 0:01:22]} ({Predecessor:} 11. Rc1 Nbd7 12. Nd4 Qc7 13. f4 Rac8 14. Bf3 cxd5 15. cxd5 Qd8 16. b4 Nb8 17. Qb3 {1-0 Cobo Arteaga,E-Camps Galceran,P Capablanca Memorial-12 Maestros 1975 (9)}) 11... Nbd7 {[%emt 0:04:08]} 12. Bh6 {[%emt 0:00:37]} Nc5 {[%emt 0:02:17]} 13. Bxg7 {[%emt 0:00:12]} Kxg7 {[%emt 0:00:01]} 14. Qd4 {[%emt 0:00:30]} e5 {[%emt 0:00:59]} 15. dxe6 {[%emt 0:00:30]} Nxe6 {[%emt 0:01:55]} 16. Qe3 {[%emt 0:01:05]} Re8 {[%emt 0:02:08]} 17. b4 {[%emt 0:06:25] [#] Prevents Nc5.} (17. Rad1 $14 {stays ahead.}) 17... Qe7 {[%emt 0:00:30][%mdl 32768] Weighted Error Value: White=0.28 (precise) /Black=0.16 (very precise) . Loss on time!?} (17... c5 $1 $17 18. Nd2 cxb4) 0-1

[Event "1st FIDE Olympiad DIS 2023"]
[Site "Belgrade"]
[Date "2023.01.30"]
[Round "1.7"]
[White "Valenta, Vit Vaclav"]
[Black "Rakhatbekov, Tilegen"]
[Result "1/2-1/2"]
[ECO "A00"]
[WhiteElo "2022"]
[BlackElo "1489"]
[Annotator "TA"]
[PlyCount "86"]
[EventDate "2023.01.30"]
[EventType "team-tourn"]
[EventCountry "SRB"]
[SourceTitle "playchess.com"]
[Source "ChessBase"]
[SourceQuality "1"]
[WhiteTeam "Czech Republic"]
[BlackTeam "Kyrgyzstan"]
[WhiteTeamCountry "CZE"]
[BlackTeamCountry "KGZ"]
[TimeControl "40/5400+30:1800+30"]

{[%evp 9,86,0,14,11,17,20,17,21,14,17,25,-8,10,15,52,27,33,16,12,17,42,36,64,64,55,57,63,57,49,47,52,16,12,15,8,12,12,10,2,17,18,7,0,0,0,0,0,-23,-30,-29,0,-12,-18,-43,-41,-39,-28,-44,-6,-10,0,-35,-33,-40,-18,-18,-21,-21,0,-18,0,0,0,-20,0,0,0,-21,0]} 1. b4 {[%emt 0:00:06]} e5 {[%emt 0:01:01]} 2. Bb2 {[%emt 0:00:06]} d6 {[%emt 0:01:56]} 3. g3 {[%emt 0:00:17]} Nf6 {[%emt 0:01:21]} 4. Bg2 {[%emt 0:00:19]} Be7 {[%emt 0:01:20]} 5. d3 {[%emt 0:00:28]} Nbd7 {[%emt 0:00:31]} 6. Nf3 {[%emt 0:00:13] A00: Irregular Openings.} d5 {[%emt 0:01:30]} 7. Nxe5 {[%emt 0:00:57]} Nxe5 {[%emt 0:00:53]} 8. Bxe5 {[%emt 0:00:08]} Bxb4+ {[%emt 0:00:16]} 9. Nd2 {[%emt 0:00:05]} O-O {[%emt 0:00:47]} 10. O-O {[%emt 0:00:10] [#]} (10. Rb1 $5 {[%cal Rb1b4]} a5 11. O-O $11) 10... c6 $146 {[%emt 0:01:16]} (10... Re8 $5 {[%cal Re8e5]} 11. Rb1 Rxe5 12. Rxb4 Qe7 $11) ({Predecessor:} 10... Bxd2 11. Qxd2 Qe7 12. Qg5 Be6 13. Bxf6 Qxf6 14. Qxf6 gxf6 15. Rab1 b6 16. c4 Rad8 17. cxd5 Bxd5 18. Bxd5 Rxd5 19. Rfc1 c5 {½-½ Cingari,J-Soraire,D Feria del Orinoco op 2001 (3)}) 11. Rb1 {[%emt 0:02:13]} Bd6 {[%emt 0:06:12]} 12. Bc3 {[%emt 0:01:36]} Rb8 {[%emt 0:01:29]} 13. Bd4 {[%emt 0:03:46]} b6 {[%emt 0:01:58]} 14. c4 {[%emt 0:01:43]} dxc4 {[%emt 0:04:01]} 15. Nxc4 {[%emt 0:01:08]} ({Reject} 15. Bxc6 cxd3 16. Bxf6 Qxf6 $11) 15... Bc7 {[%emt 0:00:16]} 16. Ba1 {[%emt 0:00:53] White is more active.} c5 {[%emt 0:05:31]} 17. Ne5 {[%emt 0:00:55] Hoping for Nc6.} Bb7 {[%emt 0:00:07] [#] ...Bxg2 would be deadly.} 18. Nc6 {[%emt 0:02:01]} Bxc6 {[%emt 0:01:11]} 19. Bxc6 {[%emt 0:00:02]} Qe7 {[%emt 0:00:46]} 20. Bf3 {[%emt 0:02:30]} Be5 {[%emt 0:00:11]} 21. Bxe5 {[%emt 0:00:52]} Qxe5 {[%emt 0:00:06]} 22. Qa4 {[%emt 0:00:08]} Qe7 {[%emt 0:03:04]} 23. Qa6 {[%emt 0:03:52]} Rfd8 {[%emt 0:01:18]} 24. Rfc1 {[%emt 0:07:12]} h6 {[%emt 0:01:52]} 25. Rc3 {[%emt 0:06:42]} Nd5 {[%emt 0:00:57]} 26. Ra3 {[%emt 0:01:35]} Rb7 $1 {[%emt 0:01:49]} 27. Qc4 {[%emt 0:12:27]} Rbd7 {[%emt 0:00:38]} 28. Qe4 {[%emt 0:03:08]} Qf6 {[%emt 0:01:07] Strongly threatening ...Nc3.} 29. Qc4 {[%emt 0:02:36] Wards off Nc3} Qe7 {[%emt 0:01:37]} (29... Nb4 {seems wilder.} 30. Be4 Re7 31. Qb3 g6) 30. Bg4 {[%emt 0:05:05]} Rc7 {[%emt 0:02:49][%cal Od5e3]} 31. h3 {[%emt 0:04:32]} Nb4 {[%emt 0:02:18]} 32. Bf3 {[%emt 0:04:55]} Rd4 {[%emt 0:01:47]} 33. Qc3 {[%emt 0:03:00]} Nd5 {[%emt 0:02:38]} 34. Qb2 {[%emt 0:06:20]} Nb4 {[%emt 0:02:29]} 35. Rb3 {[%emt 0:00:41]} Nc6 {[%emt 0:01:27]} 36. Rc1 {[%emt 0:01:41]} Rd6 {[%emt 0:00:48] White should prevent ...Nd4.} 37. Bxc6 {[%emt 0:01:45] The position is equal.} Rcxc6 {[%emt 0:01:01]} 38. Rc4 {[%emt 0:01:28]} Rd4 {[%emt 0:04:28]} 39. Rbc3 {[%emt 0:01:30] [#] Rxd4 is the strong threat.} Rxc4 {[%emt 0:00:32]} 40. Rxc4 {[%emt 0:00:15]} Re6 {[%emt 0:00:27]} 41. Rc2 {[%emt 0:34:20]} Rd6 {[%emt 0:30:53]} 42. Rc4 {[%emt 0:00:33]} Re6 {[%emt 0:00:03]} 43. Rc2 {[%emt 0:01:25]} Rd6 {[%emt 0:00:03] Weighted Error Value: White=0.07 (flawless) /Black=0.09 (flawless)} 1/2-1/2

[Event "1st FIDE Olympiad DIS 2023"]
[Site "Belgrade"]
[Date "2023.01.30"]
[Round "1.7"]
[White "Abiad Parra, Victor"]
[Black "Gurbanov, Andrei"]
[Result "1/2-1/2"]
[ECO "C67"]
[WhiteElo "1855"]
[BlackElo "2275"]
[Annotator "TA"]
[PlyCount "69"]
[EventDate "2023.01.30"]
[EventType "team-tourn"]
[EventCountry "SRB"]
[SourceTitle "playchess.com"]
[Source "ChessBase"]
[SourceQuality "1"]
[WhiteTeam "Venezuela"]
[BlackTeam "Israel"]
[WhiteTeamCountry "VEN"]
[BlackTeamCountry "ISR"]
[TimeControl "40/5400+30:1800+30"]

{[%evp 20,69,29,25,22,14,30,8,27,0,11,0,8,0,8,0,13,0,16,13,47,50,45,50,57,45,56,49,60,60,60,62,75,61,83,70,90,55,58,0,70,55,44,0,71,0,45,0,56,0,64,0]} 1. e4 {[%emt 0:00:14]} e5 {[%emt 0:00:06]} 2. Nf3 {[%emt 0:00:11]} Nc6 {[%emt 0:00:03]} 3. Bb5 {[%emt 0:00:49]} Nf6 {[%emt 0:00:11][%cal Bg8f6,Bf6e4,Be4d6,Bd6f5,Bf5h4][%mdl 32]} 4. O-O {[%emt 0:00:56][%cal Bh1f1,Bf1e1,Be1e5][%mdl 32]} Nxe4 {[%emt 0:02:37]} 5. Re1 {[%emt 0:00:25]} Nd6 {[%emt 0:00:35]} 6. Nxe5 {[%emt 0:01:45]} Be7 {[%emt 0:01:08]} 7. Bf1 {[%emt 0:05:04]} Nxe5 {[%emt 0:03:09]} 8. Rxe5 {[%emt 0:00:02]} O-O {[%emt 0:00:07]} 9. d4 {[%emt 0:01:02]} Bf6 {[%emt 0:00:14]} 10. Re1 {[%emt 0:00:30]} Nf5 {[%emt 0:02:58]} 11. c3 {[%emt 0:00:20]} d5 {[%emt 0:04:14] C67: Ruy Lopez: Berlin Defence: 4 0-0 Nxe4.} 12. Bf4 {[%emt 0:08:56]} Nh4 {[%emt 0:05:24]} 13. Bg3 {[%emt 0:31:06]} Bf5 {[%emt 0:03:41] The position is equal.} 14. Bd3 {[%emt 0:01:13] [#] Bxh4 would be deadly.} Qd7 {[%emt 0:05:57]} 15. Qc2 {[%emt 0:04:21] [#]} Rfe8 $146 {[%emt 0:15:25]} ({Predecessor:} 15... Bxd3 16. Qxd3 Ng6 17. Nd2 Rfe8 18. Nf3 c6 19. h3 Rxe1+ 20. Rxe1 {½-½ Kutuzovic,B (2334)-Sulava,N (2552) CRO-chT1A 19th 2010 (3)}) 16. Nd2 {[%emt 0:01:52]} Bxd3 {[%emt 0:11:26]} 17. Qxd3 {[%emt 0:01:13]} Nf5 {[%emt 0:02:02]} 18. Bf4 {[%emt 0:08:59]} a5 {[%emt 0:06:56] [#]} 19. Bxc7 $1 {[%emt 0:19:44][%mdl 64] Threatens to win with Rxe8+. Deflection} Rxe1+ {[%emt 0:02:50]} (19... Nxd4 20. Bf4) 20. Rxe1 {[%emt 0:00:01]} Nxd4 {[%emt 0:02:10]} 21. Be5 {[%emt 0:03:08]} Bxe5 {[%emt 0:00:29]} 22. Rxe5 {[%emt 0:00:02]} ({Of course not} 22. cxd4 Bd6 $11) 22... f6 $1 {[%emt 0:00:26]} 23. Re1 {[%emt 0:01:43]} Nc6 {[%emt 0:02:51]} 24. Nf3 {[%emt 0:01:14] Inhibits Ne5.} a4 {[%emt 0:01:54]} 25. h3 {[%emt 0:00:42]} a3 {[%emt 0:00:31]} 26. b3 {[%emt 0:00:09]} Rd8 {[%emt 0:03:36]} 27. Qe3 {[%emt 0:00:55] White is more active.} Kf7 {[%emt 0:02:06]} 28. Qc5 {[%emt 0:01:33]} Qd6 {[%emt 0:00:36]} 29. Qe3 {[%emt 0:03:03]} (29. Qb6 $14) 29... g6 {[%emt 0:11:50]} (29... Qd7 $1 $11) 30. Qh6 {[%emt 0:00:52]} Kg8 {[%emt 0:00:02]} 31. Qe3 {[%emt 0:00:42]} Kf7 $1 {[%emt 0:03:24]} 32. Qh6 {[%emt 0:00:02]} Kg8 {[%emt 0:00:05]} 33. Qe3 {[%emt 0:00:04]} Kf7 $1 {[%emt 0:05:42]} 34. Qh6 {[%emt 0:00:05]} Kg8 35. Qe3 {[%emt 0:00:01] Weighted Error Value: White=0.21 (precise) /Black=0.10 (very precise)} (35. Qc1 $14) 1/2-1/2

[Event "1st FIDE Olympiad DIS 2023"]
[Site "Belgrade"]
[Date "2023.01.30"]
[Round "1.8"]
[White "Aleksandrova, Aleksandra"]
[Black "Monterrey, Henry"]
[Result "1-0"]
[ECO "B07"]
[WhiteElo "1701"]
[BlackElo "1759"]
[Annotator "NA RC COMBH"]
[PlyCount "67"]
[EventDate "2023.01.30"]
[EventType "team-tourn"]
[EventCountry "SRB"]
[SourceTitle "playchess.com"]
[Source "ChessBase"]
[SourceQuality "1"]
[WhiteTeam "Israel"]
[BlackTeam "Venezuela"]
[WhiteTeamCountry "ISR"]
[BlackTeamCountry "VEN"]
[TimeControl "40/5400+30:1800+30"]

1. d4 Nf6 2. Nd2 g6 3. e4 d6 4. Ngf3 Bg7 5. c3 O-O 6. Be2 e5 7. dxe5 dxe5 8. Qb3 Nbd7 9. a4 Nc5 10. Qc2 Nh5 11. b4 Ne6 12. Nc4 Nef4 13. Bf1 f5 14. Ne3 fxe4 15. Qxe4 Bf5 16. Nxf5 gxf5 17. Qc4+ Kh8 18. g3 e4 19. Nd4 Nd3+ 20. Bxd3 exd3 21. O-O Qd7 22. Qxd3 f4 23. Qf3 Qh3 24. g4 Qxf3 25. Nxf3 Nf6 26. h3 Nd5 27. Ra3 Nxc3 28. Re1 Rad8 29. Bd2 Rd3 30. Kg2 Rfd8 31. Bxf4 Ne2 32. Bxc7 Rxa3 33. Bxd8 Ra2 34. Kf1 1-0

[Event "1st FIDE Olympiad DIS 2023"]
[Site "Belgrade"]
[Date "2023.01.30"]
[Round "1.8"]
[White "Bolotov, Toktobek"]
[Black "Ryvova, Anna"]
[Result "1-0"]
[ECO "D13"]
[WhiteElo "1437"]
[BlackElo "1823"]
[Annotator "NA RC COMBH"]
[PlyCount "113"]
[EventDate "2023.01.30"]
[EventType "team-tourn"]
[EventCountry "SRB"]
[SourceTitle "playchess.com"]
[Source "ChessBase"]
[SourceQuality "1"]
[WhiteTeam "Kyrgyzstan"]
[BlackTeam "Czech Republic"]
[WhiteTeamCountry "KGZ"]
[BlackTeamCountry "CZE"]
[TimeControl "40/5400+30:1800+30"]

1. d4 {[%emt 0:00:00]} d5 {[%emt 0:00:00]} 2. c4 {[%emt 0:00:00]} c6 {[%emt 0:00:00]} 3. cxd5 {[%emt 0:00:37]} cxd5 {[%emt 0:00:00]} 4. Nc3 {[%emt 0:00:10]} Nf6 {[%emt 0:02:31]} 5. Nf3 {[%emt 0:00:27]} e6 {[%emt 0:02:30]} 6. Bg5 {[%emt 0:01:50]} Be7 {[%emt 0:00:17]} 7. e3 {[%emt 0:00:11]} O-O {[%emt 0:00:14]} 8. Bd3 {[%emt 0:00:34]} h6 {[%emt 0:00:46]} 9. Bh4 {[%emt 0:00:19]} Nc6 {[%emt 0:01:10]} 10. a3 {[%emt 0:00:21]} Qb6 {[%emt 0:14:12]} 11. Qe2 {[%emt 0:01:28]} Re8 {[%emt 0:02:42]} 12. O-O {[%emt 0:01:36]} Bd7 {[%emt 0:01:22]} 13. Rac1 {[%emt 0:00:27]} Rac8 {[%emt 0:04:40]} 14. b4 {[%emt 0:01:47]} Qd8 {[%emt 0:18:37]} 15. Nb5 {[%emt 0:02:09]} Bf8 {[%emt 0:04:58]} (15... Ne4 $11 16. Bxe7 Qxe7 17. Bxe4 dxe4) 16. Ne5 {[%emt 0:01:03]} a6 $1 {[%emt 0:05:50]} 17. Nc3 {[%emt 0:03:58]} b5 {[%emt 0:01:41]} ({Better is} 17... Be7 $14) 18. f4 {[%emt 0:00:52]} Be7 {[%emt 0:03:20]} 19. Rf3 {[%emt 0:00:53]} Nh7 $2 {[%emt 0:03:16]} (19... Ne4 $11 {and Black is okay.} 20. Bxe7 Qxe7 21. Bxe4 dxe4) 20. Bxe7 {[%emt 0:00:19]} Qxe7 {[%emt 0:00:19]} 21. Qc2 {[%emt 0:01:43]} Nf6 {[%emt 0:01:20]} 22. Qf2 {[%emt 0:00:27]} Rc7 {[%emt 0:05:32]} 23. Qd2 {[%emt 0:02:10]} (23. Qe1 $142) 23... Rec8 {[%emt 0:00:54]} 24. f5 {[%emt 0:00:51]} Nxe5 {[%emt 0:07:48]} 25. dxe5 {[%emt 0:01:23]} Ne4 {[%emt 0:01:51]} 26. Bxe4 {[%emt 0:00:36] Remove Defender} dxe4 {[%emt 0:00:06]} 27. f6 {[%emt 0:00:05]} gxf6 $2 {[%emt 0:05:31]} (27... Qd8 $11 {and Black is okay.} 28. Rff1 Rc4) 28. exf6 {[%emt 0:00:48]} Qd8 {[%emt 0:00:47]} 29. Rff1 $2 {[%emt 0:02:56]} ({Better is} 29. Qd6 $18 Qf8 30. Rg3+ (30. Qxa6 $2 {is the wrong capture.} exf3 31. Rd1 Rxc3 $19) 30... Kh8 31. Qe5 (31. Qxa6 $2 Rxc3 32. Rxc3 Rxc3 $19)) 29... Rc4 {[%emt 0:02:42]} 30. Qd6 {[%emt 0:01:34]} Qc7 {[%emt 0:02:30]} 31. Qxc7 {[%emt 0:00:58]} R8xc7 {[%emt 0:00:09]} 32. Ne2 {[%emt 0:00:40]} Rxc1 {[%emt 0:00:32]} 33. Rxc1 {[%emt 0:00:15]} Rxc1+ {[%emt 0:00:09]} 34. Nxc1 {[%emt 0:00:08]} Kh7 {[%emt 0:00:10]} 35. Nb3 {[%emt 0:00:10]} Kg6 {[%emt 0:00:53]} 36. Nc5 {[%emt 0:00:20]} Bc6 {[%emt 0:00:39]} 37. Nxa6 {[%emt 0:00:07]} Kxf6 {[%emt 0:00:13]} 38. Kf2 {[%emt 0:01:29]} Kg5 {[%emt 0:01:02]} 39. Nc5 {[%emt 0:00:12]} e5 {[%emt 0:01:24]} 40. Nb3 {[%emt 0:02:02]} f5 {[%emt 0:00:30]} 41. g3 {[%emt 0:30:08]} f4 {[%emt 0:30:31]} 42. Nd2 {[%emt 0:01:06]} f3 {[%emt 0:02:27]} 43. h3 {[%emt 0:00:11]} h5 {[%emt 0:01:37]} 44. Nb1 {[%emt 0:00:08]} Bd7 {[%emt 0:01:28]} 45. Nc3 {[%emt 0:00:12]} Bc6 {[%emt 0:01:26]} 46. a4 {[%emt 0:00:30]} bxa4 {[%emt 0:01:15]} 47. b5 {[%emt 0:00:09]} Bb7 {[%emt 0:00:23]} 48. Nxa4 {[%emt 0:00:05]} Kf5 {[%emt 0:00:00]} 49. Nc5 {[%emt 0:00:00]} Bd5 {[%emt 0:00:00]} 50. b6 {[%emt 0:00:00]} Kf6 {[%emt 0:00:00]} 51. b7 {[%emt 0:00:00]} Bxb7 {[%emt 0:00:00]} 52. Nxb7 {[%emt 0:00:00]} Ke6 {[%emt 0:00:00]} 53. g4 {[%emt 0:00:00]} Kf6 {[%emt 0:00:00]} 54. Nc5 {[%emt 0:00:00]} hxg4 {[%emt 0:00:00]} 55. hxg4 $18 {[%emt 0:00:00]} Kg5 {[%emt 0:00:00]} 56. Kg3 {[%emt 0:00:00]} f2 {[%emt 0:00:00]} 57. Nxe4+ {[%emt 0:00:00]} 1-0